bitfinex-derivatives/quotes_SOLF0:USTF0_20250524
["timestamp","ask_amount","ask_price","bid_price","bid_amount"]
[1748054773155,5.7132,175.0,174.99,0.04376149]
[1748054774453,118.55502565,175.02,174.89,113.9]
[1748054774660,4.63502565,174.99,174.92,8.08896658]
[1748054774957,113.9,174.98,174.93,6.12923719]
[1748054775257,113.9,174.98,174.94,6.12923719]
[1748054775560,113.94232408,174.98,174.94,0.03645136]
[1748054776767,5.7148,174.96,174.94,0.03645136]
[1748054777660,5.7148,174.95,174.94,0.03645136]
[1748054778663,113.94232408,174.98,174.94,0.03645136]
[1748054779262,5.7148,174.95,174.94,0.03645136]
[1748054779665,5.7146,174.96,174.94,0.03645136]
[1748054779959,113.94232408,174.98,174.94,0.03645136]
[1748054781157,5.7145,174.96,174.94,0.03645136]
[1748054783565,5.7143,174.97,174.94,0.03645136]
[1748054784864,5.7145,174.96,174.94,0.03645136]
[1748054785068,4.63502565,174.95,174.82,4.92922188]
[1748054785366,113.92,174.94,174.84,3.85]
[1748054785562,113.92,174.95,174.92,5.7156]
[1748054786067,113.95984395,174.95,174.92,0.04046965]
[1748054787067,119.67474395,174.95,174.92,0.04046965]
[1748054788861,113.95984395,174.95,174.92,0.04046965]
[1748054789467,5.7154,174.94,174.92,0.04046965]
[1748054792072,119.67474395,174.95,174.92,0.04046965]
[1748054792468,113.95984395,174.95,174.92,0.04046965]
[1748054792665,5.7152,174.94,174.92,0.04046965]
[1748054793267,5.7155,174.93,174.92,0.04046965]
[1748054797672,5.7165,174.9,174.86,5.7178]
[1748054798074,5.7165,174.9,174.87,5.7174]
[1748054798476,5.7169,174.89,174.84,3.85]
[1748054798774,0.0424132,174.88,174.85,0.04145202]
[1748054799274,0.0424132,174.88,174.85,5.75925202]
[1748054801679,0.0424132,174.88,174.85,0.04145202]
[1748054802276,5.7596132,174.88,174.85,0.04145202]
[1748054803882,5.7175,174.87,174.85,0.04145202]
[1748054807279,5.7596132,174.88,174.85,0.04145202]
[1748054807670,5.7596132,174.88,174.85,5.75945202]
[1748054810791,5.7174,174.87,174.85,0.04145202]
[1748054811182,0.0424132,174.88,174.85,0.04145202]
[1748054811383,5.7596132,174.88,174.85,5.75945202]
[1748054819695,2.96689308,174.87,174.85,5.75945202]
[1748054820085,2.96689308,174.87,174.86,5.7178]
[1748054820285,0.0424132,174.88,174.85,0.04145202]
[1748054820990,0.0424132,174.88,174.87,5.7174]
[1748054822999,3.00930628,174.88,174.85,0.04145202]
[1748054823202,8.72650628,174.88,174.85,0.04145202]
[1748054823404,3.00930628,174.88,174.85,0.04145202]
[1748054823700,0.0424132,174.88,174.85,0.04145202]
[1748054824600,0.0424132,174.88,174.86,5.7177]
[1748054824994,0.0424132,174.88,174.85,0.04145202]
[1748054825193,0.0424132,174.88,174.87,5.7174]
[1748054826395,113.94,174.91,174.9,5.7165]
[1748054826601,113.94,174.91,174.86,1.9844]
[1748054826800,113.94,174.91,174.87,6.14044819]
[1748054827003,113.94,174.91,174.89,5.7165]
[1748054828902,119.6562,174.91,174.88,5.75499947]
[1748054829090,113.94,174.91,174.88,0.03799947]
[1748054830303,5.7168,174.89,174.88,0.03799947]
[1748054832105,5.7165,174.9,174.88,0.03799947]
[1748054832404,113.94,174.91,174.88,0.03799947]
[1748054832790,5.7165,174.9,174.88,0.03799947]
[1748054834202,0.04220526,174.92,174.88,0.03799947]
[1748054834598,0.04220526,174.92,174.9,5.7164]
[1748054837711,5.75810526,174.92,174.89,5.7167]
[1748054839205,5.75810526,174.92,174.9,6.16319295]
[1748054839411,5.75810526,174.92,174.89,5.7167]
[1748054842020,0.04220526,174.92,174.88,0.03799947]
[1748054842210,0.04220526,174.92,174.89,6.1564646]
[1748054842509,0.04220526,174.92,174.88,0.03799947]
[1748054843513,5.7162,174.91,174.88,0.03799947]
[1748054844214,5.7162,174.91,174.88,5.75509947]
[1748054844412,5.75810526,174.92,174.89,6.15138854]
[1748054844613,5.75810526,174.92,174.88,0.03799947]
[1748054844803,5.75810526,174.92,174.89,11.86797928]
[1748054845009,5.75810526,174.92,174.89,5.7168]
[1748054845208,5.7162,174.91,174.88,0.03799947]
[1748054845404,5.7162,174.91,174.89,6.15080954]
[1748054845611,0.04220526,174.92,174.88,0.03799947]
[1748054845810,5.7162,174.91,174.89,6.1498341]
[1748054846012,5.7162,174.91,174.88,0.03799947]
[1748054846212,0.04220526,174.92,174.89,6.14972024]
[1748054846416,5.7162,174.91,174.88,0.03799947]
[1748054846617,0.04220526,174.92,174.89,6.14833592]
[1748054846817,0.04220526,174.92,174.88,0.03799947]
[1748054847116,0.04220526,174.92,174.89,6.14878619]
[1748054847310,0.04220526,174.92,174.88,0.03799947]
[1748054847516,5.7161,174.91,174.89,6.15202276]
[1748054847816,0.04220526,174.92,174.88,0.03799947]
[1748054848119,0.04220526,174.92,174.89,6.15261945]
[1748054848312,5.7164,174.91,174.88,0.03799947]
[1748054848519,5.7164,174.91,174.89,6.15316677]
[1748054848718,5.7164,174.91,174.88,5.75509947]
[1748054848914,5.7164,174.91,174.89,6.15322552]
[1748054849114,5.7164,174.91,174.88,5.75509947]
[1748054849316,5.7164,174.91,174.89,6.1533313]
[1748054849616,5.7164,174.91,174.88,5.75509947]
[1748054849921,5.7164,174.91,174.89,6.15320301]
[1748054850215,5.7164,174.91,174.88,5.75509947]
[1748054850413,5.7164,174.91,174.89,6.15323733]
[1748054850617,5.7164,174.91,174.88,5.75509947]
[1748054850818,5.7164,174.91,174.89,6.15578405]
[1748054851020,5.7164,174.91,174.88,5.75509947]
[1748054851219,5.7164,174.91,174.89,6.15573008]
[1748054851516,0.04220526,174.92,174.88,0.03799947]
[1748054851716,0.04220526,174.92,174.89,6.15577979]
[1748054852011,0.04220526,174.92,174.88,0.03799947]
[1748054852215,0.04220526,174.92,174.89,6.15583953]
[1748054852414,0.04220526,174.92,174.88,0.03799947]
[1748054852625,0.04220526,174.92,174.89,6.15354848]
[1748054852814,0.04220526,174.92,174.88,0.03799947]
[1748054853011,0.04220526,174.92,174.89,6.15143082]
[1748054853224,0.04220526,174.92,174.9,6.15143082]
[1748054853523,0.04220526,174.92,174.91,5.7161]
[1748054855126,5.7141,174.98,174.95,5.7147]
[1748054855315,14.26434355,175.01,174.89,5.97544876]
[1748054855316,607.9,175.0,174.9,1.8524]
[1748054855516,113.92,175.0,174.91,6.14369238]
[1748054855716,14.26434355,175.01,175.0,5.7132]
[1748054856118,19.97724355,175.01,174.97,5.7139]
[1748054856323,19.97724355,175.01,174.98,6.13829635]
[1748054856524,19.97724355,175.01,174.97,0.03953969]
[1748054856722,19.97724355,175.01,174.98,5.7138]
[1748054856929,19.97724355,175.01,174.97,0.03953969]
[1748054857925,19.97724355,175.01,174.97,5.75353969]
[1748054858326,5.7132,175.0,174.97,5.75353969]
[1748054859633,113.95606404,175.02,174.97,0.03953969]
[1748054860035,5.7133,175.0,174.97,0.03953969]
[1748054861325,119.66896404,175.02,174.97,0.03953969]
[1748054861725,113.95606404,175.02,174.97,0.03953969]
[1748054862033,5.7131,175.01,174.98,5.7138]
[1748054862234,113.95606404,175.02,174.97,0.03953969]
[1748054863236,0.03606404,175.02,174.97,0.03953969]
[1748054863736,0.03606404,175.02,175.0,5.713]
[1748054863931,0.03606404,175.02,174.97,0.03953969]
[1748054865636,5.74876404,175.02,174.99,5.7135]
[1748054870434,0.03606404,175.02,174.97,0.03953969]
[1748054870937,5.7134,175.0,174.97,5.75373969]
[1748054872139,5.7134,175.0,174.97,0.03953969]
[1748054872734,5.7134,175.0,174.97,5.75363969]
[1748054873943,5.7134,175.0,174.98,5.7138]
[1748054874135,5.713,175.01,174.98,5.7138]
[1748054875644,0.03606404,175.02,174.97,0.03953969]
[1748054877351,5.7134,175.0,174.97,5.75373969]
[1748054877644,0.03606404,175.02,174.97,0.03953969]
[1748054878751,113.86,175.01,174.97,0.03953969]
[1748054879140,5.7134,175.0,174.97,5.75363969]
[1748054882442,113.86,175.01,174.97,0.03953969]
[1748054883342,113.86,175.01,174.98,5.7136]
[1748054884348,113.86,175.01,174.99,5.7135]
[1748054884545,113.86,175.01,174.97,0.03953969]
[1748054884744,0.03606404,175.02,175.0,5.7129]
[1748054884939,0.03606404,175.02,174.97,0.03953969]
[1748054885351,0.03606404,175.02,175.01,5.7129]
[1748054890450,0.03606404,175.02,174.97,0.03953969]
[1748054891054,5.7131,175.01,174.97,5.75373969]
[1748054891254,0.03606404,175.02,174.97,5.75373969]
[1748054891457,0.03606404,175.02,174.97,0.03953969]
[1748054891655,5.7136,174.99,174.97,0.03953969]
[1748054893054,5.7138,174.98,174.97,0.03953969]
[1748054893262,118.47573956,174.99,174.9,1.9084]
[1748054893449,4.63573956,174.96,174.91,6.13537388]
[1748054893649,4.63573956,174.96,174.87,117.82560957]
[1748054893650,5.7161,174.92,174.88,7.68480957]
[1748054893948,113.84,174.95,174.89,6.13721469]
[1748054894250,0.03841934,174.94,174.9,6.18082669]
[1748054894457,0.03841934,174.94,174.9,0.043612]
[1748054894657,5.7155,174.93,174.9,5.759812]
[1748054894857,5.7155,174.93,174.9,0.043612]
[1748054895152,5.75361934,174.94,174.9,5.759812]
[1748054895353,5.75361934,174.94,174.91,6.13893258]
[1748054895548,0.03841934,174.94,174.9,0.043612]
[1748054895754,0.03841934,174.94,174.91,6.14123874]
[1748054896058,0.03841934,174.94,174.9,0.043612]
[1748054896262,0.03841934,174.94,174.91,6.14127961]
[1748054896454,0.03841934,174.94,174.9,0.043612]
[1748054896758,0.03841934,174.94,174.91,6.14379195]
[1748054896960,0.03841934,174.94,174.92,6.14379195]
[1748054897152,0.03841934,174.94,174.9,0.043612]
[1748054897352,0.03841934,174.94,174.91,6.14282008]
[1748054897561,0.03841934,174.94,174.93,5.7155]
[1748054897750,0.03841934,174.94,174.93,11.86238737]
[1748054899855,0.03841934,174.94,174.93,11.86853634]
[1748054901561,0.03841934,174.94,174.93,11.87078717]
[1748054902464,0.03841934,174.94,174.93,11.87153925]
[1748054903662,0.03841934,174.94,174.93,11.87211459]
[1748054905165,0.03841934,174.94,174.93,13.84674068]
[1748054905366,113.84,175.01,174.93,8.13243356]
[1748054905566,113.84,175.01,174.94,6.15780747]
[1748054905755,113.84,175.01,174.95,6.15780747]
[1748054905960,113.84,175.01,174.93,5.7152]
[1748054906155,113.84,175.01,174.94,6.15769201]
[1748054906368,5.7143,174.97,174.96,0.04041581]
[1748054912773,5.714,174.98,174.96,6.19933515]
[1748054913075,0.03718438,174.99,174.96,0.04041581]
[1748054914165,5.75088438,174.99,174.96,5.75481581]
[1748054914374,0.03718438,174.99,174.96,0.04041581]
[1748054915375,5.7139,174.98,174.96,0.04041581]
[1748054920979,5.75078438,174.99,174.96,5.75491581]
[1748054921279,0.03718438,174.99,174.97,6.15816776]
[1748054921479,0.03718438,174.99,174.96,0.04041581]
[1748054921688,0.03718438,174.99,174.98,5.7138]
[1748054922075,0.03718438,174.99,174.97,5.714]
[1748054922281,0.03718438,174.99,174.96,0.04041581]
[1748054922483,0.03718438,174.99,174.97,6.15754678]
[1748054922684,0.03718438,174.99,174.98,6.15754678]
[1748054923288,0.03718438,174.99,174.98,11.87134678]
[1748054925287,0.03718438,174.99,174.98,13.84628893]
[1748054925492,0.03718438,174.99,174.98,11.87108551]
[1748054930895,0.03718438,174.99,174.98,11.87171993]
[1748054934999,0.03718438,174.99,174.98,13.84846341]
[1748054935904,8.438e-05,174.99,174.98,13.84846341]
[1748054936302,8.438e-05,174.99,174.98,11.87171993]
[1748054936496,8.438e-05,174.99,174.98,13.84758093]
[1748054938205,8.438e-05,174.99,174.98,13.84125951]
[1748054941404,8.438e-05,174.99,174.98,6.15265275]
[1748054942004,8.438e-05,174.99,174.96,4.9559491]
[1748054942310,8.438e-05,174.99,174.97,6.15718759]
[1748054942512,8.438e-05,174.99,174.96,0.04041581]
[1748054942713,8.438e-05,174.99,174.97,6.15810102]
[1748054943013,8.438e-05,174.99,174.96,0.04041581]
[1748054943313,8.438e-05,174.99,174.97,6.15710976]
[1748054943612,8.438e-05,174.99,174.96,0.04041581]
[1748054943813,8.438e-05,174.99,174.97,6.15849382]
[1748054944015,8.438e-05,174.99,174.98,6.15971849]
[1748054944712,8.438e-05,174.99,174.98,6.16206168]
[1748054945611,8.438e-05,174.99,174.98,11.87586168]
[1748054946698,8.438e-05,174.99,174.98,11.87992125]
[1748054948412,8.438e-05,174.99,174.98,11.8851324]
[1748054953314,8.438e-05,174.99,174.98,6.1713324]
[1748054957820,8.438e-05,174.99,174.98,6.17958666]
[1748054962622,8.438e-05,174.99,174.98,6.18151912]
[1748054962920,5.71358438,174.99,174.98,6.18151912]
[1748054963927,5.7142,174.97,174.96,0.04041581]
[1748054964119,118.39582394,174.99,174.93,4.93175665]
[1748054964319,4.63573956,174.96,174.93,4.93175665]
[1748054964520,5.7151,174.94,174.93,4.93175665]
[1748054965217,113.8005002,174.95,174.89,4.92922188]
[1748054965523,4.63573956,174.92,174.89,4.92922188]
[1748054965724,5.7173,174.88,174.86,6.57236195]
[1748054965925,5.7173,174.88,174.83,5.7185]
[1748054966112,0.03618277,174.87,174.84,0.0427184]
[1748054966318,5.75368277,174.87,174.84,0.0427184]
[1748054966716,0.03618277,174.87,174.84,0.0427184]
[1748054966926,5.7188,174.83,174.79,6.57236195]
[1748054967222,4.63573956,174.86,174.8,5.7197]
[1748054967724,5.7184,174.85,174.79,6.57236195]
[1748054967928,0.03919865,174.84,174.8,0.03656473]
[1748054969431,0.03919865,174.84,174.81,5.7191]
[1748054969727,0.03919865,174.84,174.8,0.03656473]
[1748054969931,113.8,174.83,174.8,0.03656473]
[1748054970731,119.5188,174.83,174.8,0.03656473]
[1748054976330,113.8,174.83,174.8,0.03656473]
[1748054976634,113.8,174.83,174.8,5.75616473]
[1748054978135,0.03919865,174.84,174.8,0.03656473]
[1748054978938,0.03919865,174.84,174.83,5.7187]
[1748054979127,0.03919865,174.84,174.8,0.03656473]
[1748054979830,0.03919865,174.84,174.81,5.7191]
[1748054980538,113.84,174.83,174.8,0.03656473]
[1748054980926,119.5588,174.83,174.8,5.75606473]
[1748054982138,113.84,174.83,174.8,5.75606473]
[1748054983238,119.5588,174.83,174.8,5.75606473]
[1748054985342,119.5588,174.83,174.8,0.03656473]
[1748054985541,5.7191,174.82,174.8,0.03656473]
[1748054986742,119.5589,174.83,174.8,0.03656473]
[1748054989243,5.7191,174.82,174.8,0.03656473]
[1748054989744,119.5589,174.83,174.8,0.03656473]
[1748054990743,5.7191,174.82,174.8,0.03656473]
[1748054991042,113.84,174.83,174.8,0.03656473]
[1748054991443,5.7194,174.81,174.8,0.03656473]
[1748054999754,5.7191,174.82,174.8,0.03656473]
[1748055001461,5.7194,174.81,174.8,0.03656473]
[1748055002361,5.7207,174.77,174.73,2.0415]
[1748055003259,5.7593981,174.77,174.73,2.08400641]
[1748055003562,0.0386981,174.77,174.74,5.7217]
[1748055004462,0.0386981,174.77,174.75,5.7213]
[1748055004964,4.63573956,174.85,174.73,2.08400641]
[1748055005154,118.49573956,174.85,174.74,1.9764851]
[1748055005349,118.49573956,174.85,174.75,1.9764851]
[1748055005557,118.49573956,174.85,174.8,5.7195]
[1748055005558,5.7184,174.84,174.8,5.7195]
[1748055005753,118.49573956,174.85,174.76,113.86]
[1748055006060,0.03943909,174.82,174.79,0.03886701]
[1748055006258,0.03943909,174.82,174.81,5.7191]
[1748055009167,0.03943909,174.82,174.81,7.70550008]
[1748055009767,0.03943909,174.82,174.81,1.98640008]
[1748055010370,0.03943909,174.82,174.81,7.70580008]
[1748055010869,0.03943909,174.82,174.81,1.98640008]
[1748055011370,0.03943909,174.82,174.79,0.03886701]
[1748055011765,113.86,174.81,174.79,0.03886701]
[1748055012066,5.7197,174.8,174.79,0.03886701]
[1748055027981,5.7208,174.77,174.74,7.6066]
[1748055028377,119.5608,174.77,174.74,7.6066]
[1748055028578,119.5608,174.77,174.74,5.7215]
[1748055029080,119.60115739,174.77,174.74,5.76525578]
[1748055030181,113.88035739,174.77,174.75,5.7213]
[1748055030783,119.60105739,174.77,174.74,5.76535578]
[1748055031081,119.60105739,174.77,174.75,1.99171366]
[1748055031280,119.60105739,174.77,174.74,5.76535578]
[1748055031473,119.60105739,174.77,174.75,1.99191974]
[1748055031673,0.04035739,174.77,174.76,1.9922646]
[1748055031874,508.58434355,174.86,174.76,1.9922646]
[1748055031875,113.84,174.8,174.76,1.9922646]
[1748055032081,113.84,174.8,174.77,1.9922646]
[1748055032281,113.84,174.8,174.73,2.0393]
[1748055032489,113.84,174.8,174.74,1.99201833]
[1748055032672,113.84,174.8,174.75,1.99201833]
[1748055032981,0.039842,174.79,174.76,2.03444882]
[1748055033182,5.759842,174.79,174.77,1.99201833]
[1748055033384,5.759842,174.79,174.76,5.76313049]
[1748055033681,5.759842,174.79,174.77,1.99198838]
[1748055033883,5.759842,174.79,174.76,5.76313049]
[1748055034077,5.759842,174.79,174.77,1.99127563]
[1748055034283,0.039842,174.79,174.77,5.7207]
[1748055035686,5.759842,174.79,174.77,5.7207]
[1748055035889,5.759842,174.79,174.76,5.76333049]
[1748055036086,5.759842,174.79,174.77,1.98972948]
[1748055036286,5.759842,174.79,174.76,5.76333049]
[1748055036584,5.759842,174.79,174.77,1.98945718]
[1748055036785,5.759842,174.79,174.76,5.76333049]
[1748055037185,0.039842,174.79,174.77,1.98951945]
[1748055037380,113.84,174.84,174.78,1.98951945]
[1748055037579,113.84,174.84,174.79,1.98951945]
[1748055037781,113.84,174.84,174.8,1.98951945]
[1748055038088,113.84,174.84,174.81,1.98779753]
[1748055038288,113.87660072,174.84,174.82,1.98721706]
[1748055038486,0.03660072,174.84,174.81,0.03712634]
[1748055038784,113.84,174.87,174.86,5.7177]
[1748055039288,113.84,174.87,174.84,5.7181]
[1748055039490,113.84,174.87,174.8,4.87999782]
[1748055039689,0.04164549,174.85,174.82,0.04200094]
[1748055039986,113.84,174.87,174.85,5.7177]
[1748055041286,113.84,174.87,174.86,5.7177]
[1748055041488,5.7168,174.89,174.86,5.7177]
[1748055041682,5.7168,174.89,174.86,5.7584521]
[1748055041882,5.7168,174.89,174.86,0.0407521]
[1748055042083,5.717,174.88,174.86,0.0407521]
[1748055045888,113.82,174.9,174.86,0.0407521]
[1748055046391,113.82,174.9,174.87,5.7174]
[1748055046892,113.82,174.9,174.88,5.7171]
[1748055048193,5.7158,174.92,174.88,5.7171]
[1748055048590,5.7162,174.91,174.88,5.7171]
[1748055048795,113.76,174.93,174.87,5.7173]
[1748055049293,118.39573956,174.93,174.87,5.7173]
[1748055049496,118.39573956,174.93,174.86,5.7584521]
[1748055049994,5.7166,174.9,174.86,5.7584521]
[1748055050999,118.39573956,174.93,174.86,0.0407521]
[1748055051297,4.63573956,174.9,174.86,0.0407521]
[1748055051489,113.74,174.89,174.86,0.0407521]
[1748055051691,5.7174,174.87,174.86,0.0407521]
[1748055052896,5.7172,174.88,174.86,0.0407521]
[1748055053092,113.74,174.89,174.86,0.0407521]
[1748055054602,5.7174,174.87,174.86,0.0407521]
[1748055055902,5.7172,174.88,174.86,0.0407521]
[1748055056501,119.4569,174.89,174.86,0.0407521]
[1748055056691,113.74,174.93,174.86,0.0407521]
[1748055057291,118.37573956,174.96,174.86,0.0407521]
[1748055057701,124.09043956,174.96,174.92,5.7156]
[1748055057901,118.37573956,174.96,174.92,5.75624497]
[1748055058905,5.7151,174.94,174.92,0.04064497]
[1748055060300,5.7155,174.93,174.92,0.04064497]
[1748055062505,5.717,174.89,174.84,2.0414]
[1748055062705,113.72,174.92,174.84,2.0414]
[1748055063010,113.72,174.92,174.91,5.7161]
[1748055063201,113.72,174.95,174.91,5.7161]
[1748055063413,113.76337685,174.95,174.91,5.75508816]
[1748055063613,113.76337685,174.95,174.91,0.03898816]
[1748055064113,5.7155,174.93,174.91,0.03898816]
[1748055070016,0.04337685,174.95,174.91,0.03898816]
[1748055070613,0.04337685,174.95,174.94,5.7151]
[1748055071423,0.04337685,174.95,174.93,5.7154]
[1748055071721,0.04337685,174.95,174.91,3.97178816]
[1748055073626,0.04337685,174.95,174.93,5.7152]
[1748055073921,0.04337685,174.95,174.91,3.97178816]
[1748055075629,0.04337685,174.95,174.94,5.7151]
[1748055079623,113.72,174.99,174.92,3.89148056]
[1748055080128,5.7132,175.0,174.92,3.88949674]
[1748055081431,5.7132,175.0,174.97,5.7139]
[1748055081629,5.7132,175.0,174.97,5.75543053]
[1748055085531,113.66,175.02,174.97,5.75543053]
[1748055085728,118.29573956,175.02,174.97,0.04153053]
[1748055086232,5.7138,174.98,174.97,0.04153053]
[1748055086530,119.3538,174.98,174.97,0.04153053]
[1748055105638,122.3180768,174.98,174.97,0.04153053]
[1748055117350,116.6042768,174.98,174.92,1.98646328]
[1748055117658,2.9642768,174.93,174.87,120.45824184]
[1748055117843,613.8834,175.05,174.88,1.98712725]
[1748055117844,2.9642768,174.91,174.88,1.98712725]
[1748055118052,113.6,174.94,174.87,4.90614184]
[1748055118053,2.9642768,174.89,174.87,4.90614184]
[1748055118343,116.5642768,174.89,174.87,4.90614184]
[1748055118547,5.7171,174.88,174.87,4.90614184]
[1748055118942,116.5642768,174.89,174.84,6.54159869]
[1748055119143,116.5642768,174.89,174.79,1.9163]
[1748055119144,2.9642768,174.85,174.79,1.9163]
[1748055119347,2.9642768,174.83,174.78,13.08365484]
[1748055119556,8.6841768,174.8,174.78,13.08365484]
[1748055119845,113.6,174.81,174.8,4.86578218]
[1748055120250,119.3194,174.81,174.8,4.86578218]
[1748055121058,5.7197,174.8,174.79,0.04269214]
[1748055121248,4.64059534,174.8,174.73,6.53858443]
[1748055121651,4.64059534,174.74,174.73,6.53858443]
[1748055121850,118.28059534,174.74,174.71,3.35609516]
[1748055122058,118.28059534,174.74,174.7,19.87628175]
[1748055122252,4.64059534,174.71,174.7,9.84629089]
[1748055122458,4.64059534,174.71,174.65,13.08365484]
[1748055122759,113.64,174.7,174.65,13.08365484]
[1748055123255,113.64,174.7,174.66,5.7242]
[1748055123459,113.67736148,174.7,174.66,0.04016538]
[1748055123653,0.03736148,174.7,174.66,0.04016538]
[1748055123961,0.03736148,174.7,174.69,5.7233]
[1748055125161,113.68,174.73,174.72,5.7223]
[1748055126057,113.68,174.73,174.71,5.76627822]
[1748055126358,113.68,174.73,174.7,0.04226391]
[1748055126562,113.72148,174.73,174.71,5.7227]
[1748055127161,113.72148,174.73,174.72,5.7223]
[1748055128057,113.72148,174.73,174.71,5.7226]
[1748055128266,113.72148,174.73,174.7,0.04226391]
[1748055128762,113.72148,174.73,174.71,5.7227]
[1748055130362,113.72148,174.73,174.7,0.04226391]
[1748055131567,113.72148,174.73,174.7,5.76506391]
[1748055131964,113.72148,174.73,174.7,0.04226391]
[1748055132170,113.72,174.79,174.76,5.7208]
[1748055132361,113.72,174.79,174.71,5.8249]
[1748055132769,119.4403,174.79,174.74,5.7214]
[1748055133173,0.03840985,174.78,174.75,0.03903098]
[1748055136170,5.75880985,174.78,174.75,0.03903098]
[1748055136373,0.03840985,174.78,174.75,0.03903098]
[1748055138269,0.03840985,174.78,174.75,5.76033098]
[1748055138971,0.03840985,174.78,174.75,0.03903098]
[1748055139172,5.75890985,174.78,174.75,0.03903098]
[1748055139573,0.03840985,174.78,174.75,0.03903098]
[1748055140772,0.03840985,174.78,174.75,5.76033098]
[1748055141373,0.03840985,174.78,174.75,0.03903098]
[1748055142760,0.03840985,174.78,174.76,5.7208]
[1748055143473,0.03840985,174.78,174.77,5.7207]
[1748055143664,113.72,174.79,174.75,0.03903098]
[1748055143972,113.72,174.79,174.78,5.7204]
[1748055144272,113.72,174.79,174.75,0.03903098]
[1748055144477,113.72,174.79,174.77,5.7204]
[1748055147479,113.72,174.79,174.78,5.7204]
[1748055158789,0.04344458,174.8,174.79,5.72]
[1748055162988,0.04344458,174.8,174.78,5.7203]
[1748055167597,0.04344458,174.8,174.79,5.72]
[1748055167786,113.7,174.82,174.75,0.03903098]
[1748055167986,113.68,174.85,174.75,0.03903098]
[1748055168189,113.68,174.85,174.83,5.7185]
[1748055168991,119.3981,174.85,174.83,5.7185]
[1748055169288,119.3981,174.85,174.82,0.0394293]
[1748055169494,119.3981,174.85,174.82,5.7583293]
[1748055171392,119.3981,174.85,174.82,0.0394293]
[1748055171393,5.7184,174.84,174.82,0.0394293]
[1748055171594,113.68,174.85,174.82,0.0394293]
[1748055171991,5.7187,174.84,174.82,0.0394293]
[1748055172493,5.7187,174.83,174.82,0.0394293]
[1748055183311,113.68,174.85,174.82,0.0394293]
[1748055183703,119.3983,174.85,174.82,0.0394293]
[1748055184513,113.68,174.85,174.82,0.0394293]
[1748055184806,4.64098587,174.83,174.72,64.0]
[1748055185004,4.64098587,174.8,174.71,11.5472]
[1748055185203,113.66,174.79,174.71,11.5472]
[1748055185403,113.66,174.79,174.71,5.8249]
[1748055185804,0.0416834,174.77,174.73,0.03966257]
[1748055186408,5.7216,174.75,174.73,0.03966257]
[1748055186710,113.66,174.74,174.73,0.03966257]
[1748055187311,119.3817,174.74,174.73,0.03966257]
[1748055220436,119.3817,174.74,174.73,6.257e-05]
[1748055220639,118.30098587,174.74,174.64,119.4712]
[1748055220936,118.30098587,174.74,174.64,5.7912]
[1748055221236,5.7237,174.68,174.65,5.7246]
[1748055221433,113.7,174.7,174.64,5.7912]
[1748055221633,0.04301938,174.69,174.65,0.03837063]
[1748055222138,0.04301938,174.69,174.66,5.7243]
[1748055223536,0.04301938,174.69,174.67,5.7238]
[1748055226143,5.76651938,174.69,174.66,5.7242]
[1748055226844,5.7236,174.68,174.65,5.76287063]
[1748055227843,5.76641938,174.69,174.66,5.7241]
[1748055228144,0.04301938,174.69,174.65,0.03837063]
[1748055228843,5.7243,174.66,174.65,0.03837063]
[1748055231341,119.4443,174.66,174.65,0.03837063]
[1748055231551,113.72,174.66,174.59,2.0534]
[1748055232044,124.49982162,174.75,174.59,2.0534]
[1748055232045,14.21882162,174.75,174.59,115.7734]
[1748055232239,118.36506245,174.74,174.59,179.7734]
[1748055232439,0.0428175,174.68,174.65,0.03626627]
[1748055233548,0.0428175,174.68,174.66,5.7241]
[1748055233747,0.0428175,174.68,174.65,0.03626627]
[1748055234349,0.0428175,174.68,174.67,5.724]
[1748055239442,0.0428175,174.68,174.66,11.694]
[1748055240654,0.0428175,174.68,174.67,5.7239]
[1748055241450,0.0428175,174.68,174.65,0.03626627]
[1748055241946,5.724,174.67,174.65,0.03626627]
[1748055242252,0.0428175,174.68,174.65,0.03626627]
[1748055242461,5.7243,174.66,174.65,0.03626627]
[1748055243542,119.4443,174.66,174.65,0.03626627]
[1748055243749,122.41875631,174.66,174.65,0.03626627]
[1748055251067,113.72,174.66,174.65,0.03626627]
[1748055251264,0.0428175,174.68,174.65,0.03626627]
[1748055251660,0.0428175,174.68,174.66,5.7243]
[1748055251859,0.0428175,174.68,174.65,0.03626627]
[1748055252166,2.97445631,174.67,174.65,0.03626627]
[1748055252765,119.5066175,174.68,174.65,0.03626627]